fUST/lending_fUST_20250217
["ID","MTS","AMOUNT","RATE_DAILY","PERIOD"]
[353262176,1739721631770,160.0,0.0001612,120]
[353262178,1739721691511,160.0,0.0001664,120]
[353262180,1739721751334,160.0,0.00015858,120]
[353262184,1739721811314,160.0,0.00017201,120]
[353262185,1739721870742,160.0,0.00016151,120]
[353262186,1739721931618,160.0,0.00017238,120]
[353262187,1739721991103,160.0,0.00016476,120]
[353262190,1739722050740,160.0,0.00016102,120]
[353262191,1739722110748,160.0,0.00016228,120]
[353262194,1739722170772,160.0,0.00016767,120]
[353262196,1739722230886,160.0,0.00016607,120]
[353262218,1739722232971,-250.0,7.32e-05,2]
[353262219,1739722232981,-300.0,8.217e-05,2]
[353262220,1739722232992,-500.0,8.218e-05,2]
[353262221,1739722233002,-500.0,8.218e-05,2]
[353262222,1739722233013,-200.49891283,8.218e-05,2]
[353262223,1739722233027,-500.0,8.218e-05,2]
[353262224,1739722233037,-500.0,8.218e-05,2]
[353262225,1739722233047,-295.43344489,8.218e-05,2]
[353262226,1739722233056,-500.0,8.218e-05,2]
[353262227,1739722233066,-500.0,8.218e-05,2]
[353262228,1739722233076,-500.0,8.218e-05,2]
[353262229,1739722233086,-425.25373783,8.218e-05,2]
[353262230,1739722233096,-500.0,8.218e-05,2]
[353262231,1739722233105,-500.0,8.218e-05,2]
[353262232,1739722233115,-500.0,8.218e-05,2]
[353262233,1739722233124,-500.0,8.218e-05,2]
[353262234,1739722233135,-500.0,8.218e-05,2]
[353262235,1739722233144,-500.0,8.219e-05,2]
[353262236,1739722233154,-500.49555044,8.219e-05,2]
[353262237,1739722233165,-500.0,8.219e-05,2]
[353262238,1739722233175,-433.49874262,8.219e-05,2]
[353262239,1739722233184,-591.09378664,8.219e-05,2]
[353262240,1739722233194,-500.0,8.219e-05,2]
[353262241,1739722233204,-500.0,8.219e-05,2]
[353262242,1739722233214,-500.0,8.219e-05,2]
[353262243,1739722233224,-500.0,8.219e-05,2]
[353262244,1739722233233,-500.0,8.219e-05,2]
[353262245,1739722233243,-500.0,8.219e-05,2]
[353262246,1739722233252,-500.0,8.219e-05,2]
[353262247,1739722233262,-500.0,8.219e-05,2]
[353262248,1739722233272,-500.0,8.219e-05,2]
[353262249,1739722233282,-500.0,8.219e-05,2]
[353262250,1739722233292,-455.59426665,8.219e-05,2]
[353262251,1739722233301,-500.0,8.219e-05,2]
[353262252,1739722233311,-500.0,8.219e-05,2]
[353262253,1739722233321,-274.07904968,8.219e-05,2]
[353262254,1739722233331,-637.96,8.219e-05,2]
[353262255,1739722233340,-197.66456261,8.219e-05,2]
[353262256,1739722233350,-436.41331482,8.219e-05,2]
[353262257,1739722233360,-500.0,8.219e-05,2]
[353262258,1739722233371,-500.0,8.219e-05,2]
[353262259,1739722233382,-500.0,8.219e-05,2]
[353262260,1739722233391,-500.0,8.219e-05,2]
[353262261,1739722233401,-502.03836946,8.219e-05,2]
[353262262,1739722233411,-500.0,8.219e-05,2]
[353262263,1739722233421,-500.0,8.219e-05,2]
[353262264,1739722233431,-500.0,8.219e-05,2]
[353262265,1739722233441,-241.24967432,8.219e-05,2]
[353262266,1739722233450,-500.0,8.219e-05,2]
[353262267,1739722233460,-500.0,8.219e-05,2]
[353262268,1739722233470,-500.0,8.219e-05,2]
[353262269,1739722233479,-500.0,8.219e-05,2]
[353262270,1739722233489,-500.0,8.219e-05,2]
[353262271,1739722233498,-575.33,8.219e-05,2]
[353262272,1739722233508,-500.0,8.219e-05,2]
[353262273,1739722233517,-500.0,8.219e-05,2]
[353262274,1739722233527,-504.72752434,8.219e-05,2]
[353262275,1739722233537,-500.0,8.219e-05,2]
[353262276,1739722233547,-500.0,8.219e-05,2]
[353262277,1739722233556,-406.85361087,8.219e-05,2]
[353262278,1739722233566,-500.0,8.219e-05,2]
[353262279,1739722233576,-500.0,8.219e-05,2]
[353262280,1739722233586,-500.0,8.219e-05,2]
[353262281,1739722233595,-500.0,8.219e-05,2]
[353262282,1739722233605,-500.0,8.219e-05,2]
[353262283,1739722233614,-500.0,8.219e-05,2]
[353262284,1739722233624,-500.0,8.219e-05,2]
[353262285,1739722233634,-500.0,8.219e-05,2]
[353262286,1739722233644,-500.0,8.219e-05,2]
[353262287,1739722233654,-505.8652231,8.219e-05,2]
[353262288,1739722233664,-571.85,8.219e-05,2]
[353262289,1739722233673,-664.47,8.219e-05,2]
[353262290,1739722233682,-500.0,8.219e-05,2]
[353262291,1739722233692,-1526.9,8.219e-05,2]
[353262292,1739722233701,-500.0,8.219e-05,2]
[353262293,1739722233711,-502.52396816,8.219e-05,2]
[353262294,1739722233720,-500.0,8.219e-05,2]
[353262295,1739722233730,-500.0,8.219e-05,2]
[353262296,1739722233739,-501.50324051,8.219e-05,2]
[353262297,1739722233748,-500.0,8.219e-05,2]
[353262298,1739722233758,-245.46080476,8.219e-05,2]
[353262299,1739722233767,-500.0,8.219e-05,2]
[353262300,1739722233777,-567.37595507,8.219e-05,2]
[353262301,1739722233786,-569.51056396,8.219e-05,2]
[353262302,1739722233796,-500.0,8.219e-05,2]
[353262303,1739722233806,-500.0,8.219e-05,2]
[353262304,1739722233816,-500.0,8.219e-05,2]
[353262305,1739722233825,-500.0,8.219e-05,2]
[353262306,1739722233835,-500.0,8.219e-05,2]
[353262307,1739722233844,-500.0,8.219e-05,2]
[353262308,1739722233854,-754.92,8.219e-05,2]
[353262309,1739722233862,-500.0,8.219e-05,2]
[353262310,1739722233872,-500.0,8.219e-05,2]
[353262311,1739722233881,-500.0,8.219e-05,2]
[353262312,1739722233890,-502.6759504,8.219e-05,2]
[353262313,1739722233899,-500.0,8.219e-05,2]
[353262314,1739722233909,-500.0,8.219e-05,2]
[353262315,1739722233918,-500.0,8.219e-05,2]
[353262316,1739722233927,-500.0,8.219e-05,2]
[353262317,1739722233936,-500.0,8.219e-05,2]
[353262318,1739722233946,-500.0,8.219e-05,2]
[353262319,1739722233955,-500.0,8.219e-05,2]
[353262320,1739722233965,-687.09,8.219e-05,2]
[353262321,1739722233975,-500.0,8.219e-05,2]
[353262322,1739722233985,-500.0,8.219e-05,2]
[353262323,1739722233995,-500.0,8.219e-05,2]
[353262324,1739722234004,-500.0,8.219e-05,2]
[353262325,1739722234014,-500.0,8.219e-05,2]
[353262326,1739722234028,-500.0,8.219e-05,2]
[353262327,1739722234038,-500.0,8.219e-05,2]
[353262328,1739722234048,-500.0,8.219e-05,2]
[353262329,1739722234059,-500.0,8.219e-05,2]
[353262330,1739722234069,-567.482444,8.219e-05,2]
[353262331,1739722234079,-500.0,8.219e-05,2]
[353262332,1739722234090,-500.0,8.219e-05,2]
[353262333,1739722234101,-586.46444235,8.219e-05,2]
[353262334,1739722234112,-501.22472776,8.219e-05,2]
[353262335,1739722234122,-500.0,8.219e-05,2]
[353262336,1739722234132,-500.0,8.219e-05,2]
[353262337,1739722234142,-500.0,8.219e-05,2]
[353262338,1739722234151,-500.0,8.219e-05,2]
[353262339,1739722234160,-500.0,8.219e-05,2]
[353262340,1739722234170,-500.0,8.219e-05,2]
[353262341,1739722234179,-500.0,8.219e-05,2]
[353262342,1739722234188,-500.0,8.219e-05,2]
[353262343,1739722234199,-500.0,8.219e-05,2]
[353262344,1739722234210,-500.0,8.219e-05,2]
[353262345,1739722234221,-500.0,8.219e-05,2]
[353262346,1739722234230,-500.0,8.219e-05,2]
[353262347,1739722234240,-500.0,8.219e-05,2]
[353262348,1739722234250,-500.0,8.219e-05,2]
[353262349,1739722234259,-500.0,8.219e-05,2]
[353262350,1739722234269,-500.0,8.219e-05,2]
[353262351,1739722234280,-500.0,8.219e-05,2]
[353262352,1739722234290,-500.0,8.219e-05,2]
[353262353,1739722234299,-500.0,8.219e-05,2]
[353262354,1739722234309,-383.28023989,8.219e-05,2]
[353262355,1739722234319,-500.0,8.219e-05,2]
[353262356,1739722234328,-500.0,8.219e-05,2]
[353262357,1739722234338,-500.0,8.219e-05,2]
[353262358,1739722234348,-500.0,8.219e-05,2]
[353262359,1739722234358,-500.0,8.219e-05,2]
[353262360,1739722234368,-798.07,8.219e-05,2]
[353262361,1739722234380,-500.0,8.219e-05,2]
[353262362,1739722234390,-676.36,8.219e-05,2]
[353262363,1739722234505,-676.36,8.219e-05,2]
[353262364,1739722234516,-500.0,8.219e-05,2]
[353262365,1739722234526,-676.36,8.219e-05,2]
[353262366,1739722234536,-676.36,8.219e-05,2]
[353262367,1739722234546,-676.36,8.219e-05,2]
[353262368,1739722234556,-676.36,8.219e-05,2]
[353262369,1739722234565,-676.36,8.219e-05,2]
[353262370,1739722234575,-676.36,8.219e-05,2]
[353262371,1739722234584,-500.0,8.219e-05,2]
[353262372,1739722234594,-533.59,8.219e-05,2]
[353262373,1739722234603,-10250.37,8.219e-05,2]
[353262374,1739722234613,-2130.35,8.219e-05,2]
[353262375,1739722234623,-500.0,8.219e-05,2]
[353262376,1739722234632,-500.0,8.219e-05,2]
[353262377,1739722234642,-500.0,8.219e-05,2]
[353262378,1739722234651,-989.82,8.219e-05,2]
[353262379,1739722234660,-512.82,8.219e-05,2]
[353262380,1739722234670,-757.08,8.219e-05,2]
[353262381,1739722234680,-757.08,8.219e-05,2]
[353262382,1739722234690,-757.08,8.219e-05,2]
[353262383,1739722234700,-757.08,8.219e-05,2]
[353262384,1739722234711,-757.08,8.219e-05,2]
[353262385,1739722234721,-757.08,8.219e-05,2]
[353262386,1739722234731,-757.08,8.219e-05,2]
[353262387,1739722234741,-757.08,8.219e-05,2]
[353262388,1739722234750,-757.08,8.219e-05,2]
[353262389,1739722234760,-526.74,8.219e-05,2]
[353262390,1739722234769,-706.22,8.219e-05,2]
[353262391,1739722234780,-608.24,8.219e-05,2]
[353262392,1739722234789,-500.0,8.219e-05,2]
[353262393,1739722234798,-500.0,8.219e-05,2]
[353262394,1739722234808,-500.0,8.219e-05,2]
[353262395,1739722234817,-1019.3,8.219e-05,2]
[353262396,1739722234827,-500.0,8.219e-05,2]
[353262397,1739722234836,-500.0,8.219e-05,2]
[353262398,1739722234846,-500.0,8.219e-05,2]
[353262399,1739722234856,-531.27983975,8.219e-05,2]
[353262400,1739722234865,-500.0,8.219e-05,2]
[353262401,1739722234875,-500.0,8.219e-05,2]
[353262402,1739722234884,-267.17055502,8.219e-05,2]
[353262403,1739722234894,-500.0,8.219e-05,2]
[353262404,1739722234903,-846.6,8.219e-05,2]
[353262405,1739722234913,-500.0,8.219e-05,2]
[353262406,1739722234923,-500.0,8.219e-05,2]
[353262407,1739722234932,-1504.36,8.219e-05,2]
[353262408,1739722234942,-500.0,8.219e-05,2]
[353262409,1739722234952,-500.0,8.219e-05,2]
[353262410,1739722234961,-500.0,8.219e-05,2]
[353262411,1739722234971,-500.0,8.219e-05,2]
[353262412,1739722234980,-761.16,8.219e-05,2]
[353262413,1739722234989,-500.0,8.219e-05,2]
[353262414,1739722234999,-500.0,8.219e-05,2]
[353262415,1739722235008,-584.16711782,8.219e-05,2]
[353262416,1739722235020,-560.90196253,8.219e-05,2]
[353262417,1739722235029,-500.0,8.219e-05,2]
[353262418,1739722235039,-577.38,8.219e-05,2]
[353262419,1739722235049,-500.0,8.219e-05,2]
[353262420,1739722235059,-2134.7,8.219e-05,2]
[353262421,1739722235069,-99.13255533,8.219e-05,2]
[353262444,1739722238592,-1473.88744467,8.219e-05,2]
[353262445,1739722238602,-624.26956248,8.219e-05,2]
[353262446,1739722238614,-2821.18043752,8.219e-05,2]
[353262447,1739722238624,-607.81,8.219e-05,2]
[353262448,1739722238633,-500.0,8.219e-05,2]
[353262449,1739722238642,-500.0,8.219e-05,2]
[353262450,1739722238652,-333.73388459,8.219e-05,2]
[353262451,1739722238662,-500.0,8.219e-05,2]
[353262452,1739722238671,-1555.99,8.219e-05,2]
[353262453,1739722238680,-500.0,8.219e-05,2]
[353262454,1739722238690,-500.0,8.219e-05,2]
[353262456,1739722238699,-241.91,8.219e-05,2]
[353262458,1739722238709,-500.0,8.219e-05,2]
[353262460,1739722238718,-500.0,8.219e-05,2]
[353262462,1739722238727,-594.1,8.219e-05,2]
[353262464,1739722238737,-1213.08,8.219e-05,2]
[353262466,1739722238746,-500.0,8.219e-05,2]
[353262468,1739722238756,-540.3738934,8.219e-05,2]
[353262679,1739722240777,-595.65711148,8.219e-05,2]
[353263207,1739722246563,-502.54899512,8.219e-05,2]
[353263208,1739722246573,-500.0,8.219e-05,2]
[353263209,1739722246582,-500.0,8.219e-05,2]
[353263210,1739722246592,-2545.45000488,8.219e-05,2]
[353267708,1739722350813,160.0,0.00013768,120]
[353267709,1739722410827,160.0,0.00016892,120]
[353267710,1739722470751,160.0,0.00017362,120]
[353267711,1739722530759,160.0,0.00018084,120]
[353267712,1739722590923,160.0,0.00018779,120]
[353267713,1739722651427,160.0,0.0001718,120]
[353267714,1739722710750,160.0,0.00018028,120]
[353267715,1739722770792,160.0,0.00016886,120]
[353267716,1739722830737,160.0,0.00017004,120]
[353267717,1739722890741,160.0,0.000173,120]
[353267718,1739722952574,160.0,0.00017307,120]
[353267719,1739723010806,160.0,0.00017648,120]
[353267720,1739723070754,160.0,0.00015938,120]
[353267721,1739723130748,160.0,0.00015878,120]
[353267723,1739723191627,160.0,0.00017202,120]
[353267726,1739723251013,160.0,0.00017546,120]
[353267733,1739723310800,160.0,0.00016096,120]
[353267738,1739723371427,160.0,0.00017054,120]
[353267739,1739723430765,160.0,0.00016535,120]
[353267771,1739723431875,-271.3941087,7.338e-05,2]
[353267772,1739723431888,-500.0,8.218e-05,2]
[353267773,1739723431901,-500.0,8.218e-05,2]
[353267774,1739723431913,-155.30643233,8.218e-05,2]
[353267775,1739723431925,-300.0,8.218e-05,2]
[353267776,1739723431938,-500.0,8.219e-05,2]
[353267777,1739723431950,-500.0,8.219e-05,2]
[353267778,1739723431963,-501.27627951,8.219e-05,2]
[353267779,1739723431977,-157.27088607,8.219e-05,2]
[353267780,1739723432171,-505.07339497,8.219e-05,2]
[353267781,1739723432182,-500.0,8.219e-05,2]
[353267782,1739723432192,-500.0,8.219e-05,2]
[353267783,1739723432202,-699.29,8.219e-05,2]
[353267784,1739723432212,-595.65875474,8.219e-05,2]
[353267785,1739723432223,-501.69299135,8.219e-05,2]
[353267786,1739723432233,-503.90206591,8.219e-05,2]
[353267787,1739723432243,-500.0,8.219e-05,2]
[353267788,1739723432253,-503.7709852,8.219e-05,2]
[353267789,1739723432263,-500.0,8.219e-05,2]
[353267790,1739723432273,-306.57359155,8.219e-05,2]
[353267791,1739723432283,-409.64694853,8.219e-05,2]
[353267792,1739723432292,-643.82150707,8.219e-05,2]
[353267793,1739723432303,-500.0,8.219e-05,2]
[353267794,1739723432313,-503.73,8.219e-05,2]
[353267795,1739723432322,-500.0,8.219e-05,2]
[353267796,1739723432331,-1641.66,8.219e-05,2]
[353267797,1739723432341,-501.78935841,8.219e-05,2]
[353267798,1739723432350,-500.0,8.219e-05,2]
[353267799,1739723432360,-502.50574112,8.219e-05,2]
[353267800,1739723432370,-500.0,8.219e-05,2]
[353267801,1739723432379,-500.0,8.219e-05,2]
[353267802,1739723432390,-204.51773563,8.219e-05,2]
[353267803,1739723432405,-500.0,8.219e-05,2]
[353267804,1739723432414,-653.99,8.219e-05,2]
[353267805,1739723432423,-500.0,8.219e-05,2]
[353267806,1739723432435,-526.96,8.219e-05,2]
[353267807,1739723432444,-500.0,8.219e-05,2]
[353267808,1739723432454,-500.0,8.219e-05,2]
[353267809,1739723432464,-500.0,8.219e-05,2]
[353267810,1739723432474,-500.0,8.219e-05,2]
[353267811,1739723432484,-500.0,8.219e-05,2]
[353267812,1739723432493,-590.12568633,8.219e-05,2]
[353267813,1739723432502,-500.0,8.219e-05,2]
[353267814,1739723432511,-500.0,8.219e-05,2]
[353267815,1739723432520,-327.18047127,8.219e-05,2]
[353267816,1739723432529,-866.74,8.219e-05,2]
[353267817,1739723432539,-500.0,8.219e-05,2]
[353267818,1739723432549,-500.0,8.219e-05,2]
[353267819,1739723432558,-500.0,8.219e-05,2]
[353267820,1739723432568,-500.0,8.219e-05,2]
[353267821,1739723432577,-1043.82,8.219e-05,2]
[353267822,1739723432587,-500.0,8.219e-05,2]
[353267823,1739723432596,-500.0,8.219e-05,2]
[353267824,1739723432606,-500.0,8.219e-05,2]
[353267825,1739723432616,-500.0,8.219e-05,2]
[353267826,1739723432626,-402.45482502,8.219e-05,2]
[353267827,1739723432636,-500.0,8.219e-05,2]
[353267828,1739723432646,-500.0,8.219e-05,2]
[353267829,1739723432656,-500.0,8.219e-05,2]
[353267830,1739723432666,-500.0,8.219e-05,2]
[353267831,1739723432675,-500.0,8.219e-05,2]
[353267832,1739723432685,-500.0,8.219e-05,2]
[353267833,1739723432695,-500.0,8.219e-05,2]
[353267834,1739723432705,-500.0,8.219e-05,2]
[353267835,1739723432715,-500.0,8.219e-05,2]
[353267836,1739723432724,-1636.44,8.219e-05,2]
[353267837,1739723432734,-500.0,8.219e-05,2]
[353267838,1739723432744,-500.0,8.219e-05,2]
[353267839,1739723432755,-500.0,8.219e-05,2]
[353267840,1739723432766,-631.85,8.219e-05,2]
[353267841,1739723432776,-500.0,8.219e-05,2]
[353267842,1739723432786,-792.87,8.219e-05,2]
[353267843,1739723432795,-500.0,8.219e-05,2]
[353267844,1739723432805,-500.0,8.219e-05,2]
[353267845,1739723432815,-320.63034166,8.219e-05,2]
[353267846,1739723432824,-500.0,8.219e-05,2]
[353267847,1739723432834,-500.0,8.219e-05,2]
[353267848,1739723432843,-500.0,8.219e-05,2]
[353267849,1739723432853,-500.0,8.219e-05,2]
[353267850,1739723432863,-500.0,8.219e-05,2]
[353267851,1739723432872,-500.0,8.219e-05,2]
[353267852,1739723432883,-500.0,8.219e-05,2]
[353267853,1739723432893,-500.0,8.219e-05,2]
[353267854,1739723432903,-500.0,8.219e-05,2]
[353267855,1739723432913,-500.0,8.219e-05,2]
[353267856,1739723432923,-604.21647467,8.219e-05,2]
[353267857,1739723432933,-500.0,8.219e-05,2]
[353267858,1739723432943,-500.0,8.219e-05,2]
[353267859,1739723432954,-500.0,8.219e-05,2]
[353267860,1739723432964,-503.34223926,8.219e-05,2]
[353267861,1739723432974,-500.0,8.219e-05,2]
[353267862,1739723432983,-500.0,8.219e-05,2]
[353267863,1739723432993,-500.0,8.219e-05,2]
[353267864,1739723433004,-500.0,8.219e-05,2]
[353267865,1739723433014,-500.0,8.219e-05,2]
[353267866,1739723433024,-500.0,8.219e-05,2]
[353267867,1739723433034,-500.0,8.219e-05,2]
[353267868,1739723433045,-500.0,8.219e-05,2]
[353267869,1739723433055,-500.0,8.219e-05,2]
[353267870,1739723433065,-625.84,8.219e-05,2]
[353267871,1739723433076,-500.0,8.219e-05,2]
[353267872,1739723433086,-500.0,8.219e-05,2]
[353267873,1739723433096,-500.0,8.219e-05,2]
[353267874,1739723433108,-9891.50583781,8.219e-05,2]
[353267875,1739723433134,-1342.15416219,8.219e-05,2]
[353267876,1739723433146,-500.0,8.219e-05,2]
[353267877,1739723433156,-413.44583781,8.219e-05,2]
[353267878,1739723433170,-86.55416219,8.219e-05,2]
[353267879,1739723433182,-303.72826381,8.219e-05,2]
[353267880,1739723433207,-196.27173619,8.219e-05,2]
[353267881,1739723433217,-446.3507064,8.219e-05,2]
[353267932,1739723444029,-53.6492936,8.219e-05,2]
[353267933,1739723444039,-504.6760624,8.219e-05,2]
[353267934,1739723444048,-500.0,8.219e-05,2]
[353267935,1739723444058,-500.0,8.219e-05,2]
[353267936,1739723444067,-256.00739614,8.219e-05,2]
[353267937,1739723444387,-243.99260386,8.219e-05,2]
[353267938,1739723444399,-1102.16,8.219e-05,2]
[353267939,1739723444410,-246.26768839,8.219e-05,2]
[353267940,1739723444419,-29.46382086,8.219e-05,2]
[353267941,1739723444431,-470.53617914,8.219e-05,2]
[353267942,1739723444442,-677.28,8.219e-05,2]
[353267943,1739723444451,-500.0,8.219e-05,2]
[353267944,1739723444461,-500.0,8.219e-05,2]
[353267945,1739723444471,-404.48,8.219e-05,2]
[353267946,1739723444484,-500.0,8.219e-05,2]
[353267947,1739723444494,-329.46051067,8.219e-05,2]
[353267948,1739723444507,-170.53948933,8.219e-05,2]
[353267949,1739723444517,-500.0,8.219e-05,2]
[353267950,1739723444526,-500.0,8.219e-05,2]
[353267951,1739723444536,-500.0,8.219e-05,2]
[353267952,1739723444545,-964.49,8.219e-05,2]
[353267953,1739723444555,-500.0,8.219e-05,2]
[353267954,1739723444564,-500.0,8.219e-05,2]
[353267955,1739723444574,-2123.64219562,8.219e-05,2]
[353267971,1739723471119,1333.0,0.00017425,120]
[353267972,1739723490743,160.0,0.00017396,120]
[353267973,1739723550772,160.0,0.00016036,120]
[353267974,1739723610783,160.0,0.00017464,120]
[353267975,1739723700734,282.31,0.00014,30]
[353267978,1739724252535,1333.0,0.00017425,120]
[353267980,1739724567111,-155.39724163,7.297e-05,2]
[353268008,1739724632133,-19.50909407,7.297e-05,2]
[353268009,1739724632143,-416.82613489,8.136e-05,2]
[353268010,1739724632155,-415.88665701,8.136e-05,2]
[353268011,1739724632165,-300.0,8.217e-05,2]
[353268012,1739724632175,-500.0,8.218e-05,2]
[353268013,1739724632184,-224.72508454,8.218e-05,2]
[353268014,1739724632193,-382.08998752,8.218e-05,2]
[353268015,1739724632203,-500.0,8.218e-05,2]
[353268016,1739724632212,-500.0,8.219e-05,2]
[353268017,1739724632222,-151.0,8.219e-05,2]
[353268018,1739724632232,-209.0,8.219e-05,2]
[353268019,1739724632241,-500.0,8.219e-05,2]
[353268020,1739724632250,-500.0,8.219e-05,2]
[353268021,1739724632260,-500.0,8.219e-05,2]
[353268022,1739724632269,-500.0,8.219e-05,2]
[353268023,1739724632278,-500.0,8.219e-05,2]
[353268024,1739724632288,-500.0,8.219e-05,2]
[353268025,1739724632297,-472.19035724,8.219e-05,2]
[353268026,1739724632307,-500.0,8.219e-05,2]
[353268027,1739724632316,-500.0,8.219e-05,2]
[353268028,1739724632326,-500.0,8.219e-05,2]
[353268029,1739724632336,-500.0,8.219e-05,2]
[353268030,1739724632346,-500.0,8.219e-05,2]
[353268031,1739724632356,-500.0,8.219e-05,2]
[353268032,1739724632366,-500.0,8.219e-05,2]
[353268033,1739724632375,-222.09203194,8.219e-05,2]
[353268034,1739724632385,-500.0,8.219e-05,2]
[353268035,1739724632395,-500.0,8.219e-05,2]
[353268036,1739724632404,-500.0,8.219e-05,2]
[353268037,1739724632414,-511.629958,8.219e-05,2]
[353268038,1739724632424,-500.0,8.219e-05,2]
[353268039,1739724632433,-500.0,8.219e-05,2]
[353268040,1739724632443,-475.0087835,8.219e-05,2]
[353268041,1739724632453,-500.0,8.219e-05,2]
[353268042,1739724632463,-500.0,8.219e-05,2]
[353268043,1739724632473,-500.0,8.219e-05,2]
[353268044,1739724632483,-504.16844457,8.219e-05,2]
[353268045,1739724632492,-500.0,8.219e-05,2]
[353268046,1739724632502,-500.0,8.219e-05,2]
[353268047,1739724632511,-500.0,8.219e-05,2]
[353268048,1739724632521,-500.0,8.219e-05,2]
[353268049,1739724632531,-317.37392882,8.219e-05,2]
[353268050,1739724632540,-500.0,8.219e-05,2]
[353268051,1739724632550,-500.0,8.219e-05,2]
[353268052,1739724632559,-573.66213211,8.219e-05,2]
[353268053,1739724632569,-522.6,8.219e-05,2]
[353268054,1739724632579,-500.0,8.219e-05,2]
[353268055,1739724632587,-500.0,8.219e-05,2]
[353268056,1739724632597,-500.0,8.219e-05,2]
[353268057,1739724632606,-587.96795408,8.219e-05,2]
[353268058,1739724632615,-500.0,8.219e-05,2]
[353268059,1739724632625,-500.0,8.219e-05,2]
[353268060,1739724632635,-500.0,8.219e-05,2]
[353268061,1739724632644,-500.0,8.219e-05,2]
[353268062,1739724632653,-142.28696415,8.219e-05,2]
[353268063,1739724632674,-357.71303585,8.219e-05,2]
[353268064,1739724632689,-500.0,8.219e-05,2]
[353268065,1739724632699,-500.0,8.219e-05,2]
[353268066,1739724632709,-527.55312582,8.219e-05,2]
[353268067,1739724632719,-554.79,8.219e-05,2]
[353268068,1739724632728,-500.0,8.219e-05,2]
[353268069,1739724632739,-500.0,8.219e-05,2]
[353268070,1739724632750,-103.64885093,8.219e-05,2]
[353268071,1739724632774,-396.35114907,8.219e-05,2]
[353268072,1739724632783,-500.0,8.219e-05,2]
[353268073,1739724632796,-500.0,8.219e-05,2]
[353268074,1739724632806,-500.0,8.219e-05,2]
[353268075,1739724632817,-500.0,8.219e-05,2]
[353268076,1739724632826,-500.0,8.219e-05,2]
[353268077,1739724632838,-500.0,8.219e-05,2]
[353268078,1739724632848,-500.0,8.219e-05,2]
[353268079,1739724632859,-500.0,8.219e-05,2]
[353268080,1739724632869,-509.81387919,8.219e-05,2]
[353268081,1739724632878,-510.68602465,8.219e-05,2]
[353268082,1739724632888,-632.59268705,8.219e-05,2]
[353268083,1739724632898,-501.80990277,8.219e-05,2]
[353268084,1739724632908,-500.0,8.219e-05,2]
[353268085,1739724632917,-503.70163895,8.219e-05,2]
[353268086,1739724632927,-500.0,8.219e-05,2]
[353268087,1739724632937,-566.08,8.219e-05,2]
[353268088,1739724632947,-500.0,8.219e-05,2]
[353268089,1739724632956,-500.0,8.219e-05,2]
[353268090,1739724632966,-500.0,8.219e-05,2]
[353268091,1739724632976,-500.0,8.219e-05,2]
[353268092,1739724632985,-500.0,8.219e-05,2]
[353268093,1739724632995,-500.0,8.219e-05,2]
[353268094,1739724633006,-508.54,8.219e-05,2]
[353268095,1739724633016,-501.5379233,8.219e-05,2]
[353268096,1739724633025,-500.0,8.219e-05,2]
[353268097,1739724633035,-500.0,8.219e-05,2]
[353268098,1739724633046,-807.32,8.219e-05,2]
[353268099,1739724633056,-648.14,8.219e-05,2]
[353268100,1739724633067,-1899.52,8.219e-05,2]
[353268101,1739724633077,-500.0,8.219e-05,2]
[353268102,1739724633087,-500.0,8.219e-05,2]
[353268103,1739724633098,-500.0,8.219e-05,2]
[353268104,1739724633108,-500.0,8.219e-05,2]
[353268105,1739724633119,-338.57802376,8.219e-05,2]
[353268106,1739724633131,-500.0,8.219e-05,2]
[353268107,1739724633142,-500.0,8.219e-05,2]
[353268108,1739724633152,-500.0,8.219e-05,2]